bitfinex/quotes_SOLUSD_20240809
["timestamp","ask_amount","ask_price","bid_price","bid_amount"]
[1723213590650,7.7880673,155.48,155.32,22.0413]
[1723213590651,0.12549,155.46,155.32,43.91]
[1723213590980,0.12549,155.43,155.28,59.80964046]
[1723213591149,46.6073473,155.43,155.28,59.80964046]
[1723213591655,45.50196,155.43,155.28,67.81102151]
[1723213591859,6.56009,155.41,155.28,50.62414441]
[1723213592060,0.12549,155.39,155.28,43.91]
[1723213592261,1.2308773,155.39,155.28,43.91]
[1723213592462,0.25098,155.38,155.28,43.91]
[1723213592672,0.12549,155.43,155.29,1.28743738]
[1723213592849,45.50196,155.43,155.29,1.28743738]
[1723213593056,45.50196,155.43,155.29,21.28743738]
[1723213593252,45.50196,155.43,155.3,45.12549]
[1723213593481,0.25098,155.43,155.32,0.12549]
[1723213593688,0.12549,155.43,155.32,46.78900539]
[1723213593850,0.37647,155.43,155.33,20.0]
[1723213594281,0.37647,155.43,155.33,21.28719807]
[1723213594589,0.37647,155.43,155.33,20.0]
[1723213594882,0.37647,155.43,155.33,21.28719855]
[1723213595082,0.12549,155.42,155.33,20.0]
[1723213595385,0.12549,155.42,155.34,45.0]
[1723213595601,22.9618,155.44,155.35,21.28704992]
[1723213595764,22.9618,155.44,155.36,45.0]
[1723213596081,22.9618,155.44,155.35,20.0]
[1723213596268,1.2308773,155.43,155.31,43.91]
[1723213596465,6.4345,155.42,155.28,53.42693046]
[1723213596779,1.2308773,155.43,155.28,53.42693046]
[1723213596780,0.12549,155.4,155.28,44.03549]
[1723213596980,0.12549,155.38,155.25,43.91]
[1723213597197,0.12549,155.36,155.25,43.91]
[1723213597358,6.4191,155.34,155.22,43.91]
[1723213597558,1.2308773,155.33,155.19,50.2371]
[1723213597871,7.9205573,155.32,155.19,43.91]
[1723213598185,0.12549,155.31,155.19,43.91]
[1723213598690,0.12549,155.31,155.2,1.28812853]
[1723213598979,0.12549,155.32,155.19,50.62434345]
[1723213599185,1.6073473,155.33,155.2,20.0]
[1723213599368,0.37647,155.33,155.2,21.28800359]
[1723213599573,0.12549,155.32,155.19,50.62488492]
[1723213599753,45.37647,155.33,155.19,43.91]
[1723213599954,0.12549,155.32,155.19,45.19798914]
[1723213600265,0.12549,155.32,155.19,51.91198124]
[1723213600672,0.12549,155.32,155.19,50.62402729]
[1723213600992,0.12549,155.29,155.16,43.91]
[1723213601287,0.25098,155.28,155.16,43.91]
[1723213601589,0.12549,155.29,155.16,45.19837427]
[1723213601761,0.12549,155.27,155.16,51.91396048]
[1723213601963,0.12549,155.27,155.16,50.625646]
[1723213602169,0.25098,155.27,155.13,13.42029833]
[1723213602474,1.1053873,155.26,155.13,13.42029833]
[1723213602666,0.12549,155.25,155.13,16.00074833]
[1723213603580,0.25098,155.26,155.13,18.49413416]
[1723213603810,0.12549,155.26,155.15,43.91]
[1723213604290,1.1053873,155.3,155.16,20.0]
[1723213604460,6.4387,155.31,155.18,43.91]
[1723213604661,7.5445873,155.3,155.19,65.0]
[1723213604870,1.1053873,155.3,155.19,20.0]
[1723213605066,6.4399,155.29,155.19,20.0]
[1723213605267,1.1053873,155.28,155.16,20.0]
[1723213605495,16.69829,155.26,155.13,2.58045]
[1723213605660,0.12549,155.24,155.09,54.00413763]
[1723213605990,0.12549,155.24,155.06,43.91]
[1723213605991,0.12549,155.2,155.06,43.91]
[1723213606189,6.69428,155.2,155.06,43.91]
[1723213606369,6.56919,155.19,155.06,54.00759614]
[1723213606691,0.25098,155.18,155.06,54.00759614]
[1723213606989,0.12549,155.2,155.09,43.91]
[1723213607173,0.25098,155.2,155.1,20.0]
[1723213607493,6.5945,155.21,155.12,43.91]
[1723213607690,6.5945,155.21,155.13,20.0]
[1723213608198,0.50196,155.2,155.13,20.0]
[1723213608390,0.50196,155.2,155.1,20.0]
[1723213608572,0.50196,155.2,155.11,45.0]
[1723213608768,0.50196,155.2,155.12,20.0]
[1723213609867,0.50196,155.2,155.06,60.73155221]
[1723213609868,0.12549,155.18,155.06,60.73155221]
[1723213610068,15.4251,155.16,155.06,54.00759614]
[1723213610286,0.12549,155.15,155.06,54.00759614]
[1723213610491,15.4251,155.16,155.06,54.00759614]
[1723213611088,16.5304873,155.16,155.06,10.09759614]
[1723213611276,6.1256,155.14,155.03,43.91]
[1723213611480,1.3563673,155.13,155.03,43.91]
[1723213611677,1.3563673,155.13,155.03,54.01250323]
[1723213612587,0.25098,155.13,155.03,54.01250323]
[1723213612775,0.25098,155.13,155.04,45.0]
[1723213613606,6.1256,155.14,155.04,45.0]
[1723213613906,6.1256,155.14,155.06,43.91]
[1723213614198,6.1256,155.14,155.07,65.0]
[1723213614404,6.1256,155.14,155.07,66.28923918]
[1723213614585,6.1256,155.14,155.07,65.0]
[1723213614787,15.4251,155.16,155.07,65.0]
[1723213614985,15.4251,155.16,155.08,0.25098]
[1723213615192,15.4251,155.16,155.07,65.0]
[1723213615701,15.4251,155.16,155.08,1.54020817]
[1723213615899,15.4251,155.16,155.09,43.91]
[1723213616392,15.4251,155.16,155.1,65.0]
[1723213616783,15.4251,155.16,155.11,1.28904891]
[1723213616981,6.0914,155.18,155.11,1.28904891]
[1723213617186,16.6194,155.21,155.12,43.91]
[1723213617388,16.6194,155.21,155.13,46.28882047]
[1723213617775,16.6194,155.21,155.14,20.0]
[1723213618197,1.1053873,155.2,155.14,20.0]
[1723213618401,16.6194,155.21,155.1,20.25098]
[1723213618589,16.6194,155.21,155.11,45.0]
[1723213618776,16.6194,155.21,155.12,20.0]
[1723213619811,16.6194,155.21,155.13,46.28882974]
[1723213620307,6.4867,155.23,155.16,0.12549]
[1723213620507,6.4867,155.23,155.16,20.0]
[1723213620703,6.4867,155.23,155.16,65.0]
[1723213621209,1.1053873,155.22,155.16,20.0]
[1723213621380,1.1053873,155.22,155.07,22.00732609]
[1723213621381,1.1053873,155.22,155.13,20.0]
[1723213621573,7.5477873,155.22,155.1,0.12549]
[1723213621778,6.4867,155.23,155.1,0.25098]
[1723213621973,6.4867,155.23,155.15,43.91]
[1723213622479,6.4867,155.23,155.12,43.91]
[1723213622681,7.5920873,155.23,155.1,0.12549]
[1723213622878,15.9974,155.26,155.15,43.91]
[1723213623082,15.9974,155.26,155.16,1.28859809]
[1723213623384,0.25098,155.25,155.15,43.91]
[1723213623782,15.9974,155.26,155.16,1.4140881]
[1723213623986,15.9974,155.26,155.16,66.4140881]
[1723213624283,1.1053873,155.25,155.13,0.12549]
[1723213624499,6.4421,155.23,155.12,43.91]
[1723213624817,15.9974,155.26,155.12,45.19887218]
[1723213624992,15.9974,155.26,155.15,43.91]
[1723213625384,15.9974,155.26,155.18,43.91]
[1723213625586,6.2285,155.29,155.19,0.12549]
[1723213625809,6.2285,155.29,155.19,66.79008135]
[1723213626611,6.4409,155.26,155.15,43.91]
[1723213626915,6.4416,155.24,155.12,43.91]
[1723213627104,16.1292,155.22,155.12,43.91]
[1723213627612,16.1292,155.22,155.13,1.28882989]
[1723213628007,16.1292,155.22,155.12,43.91]
[1723213628311,16.1292,155.22,155.09,1.28862924]
[1723213628312,6.2172,155.2,155.09,45.19900556]
[1723213629417,0.12549,155.19,155.09,43.91]
[1723213629709,6.2172,155.2,155.1,21.28899887]
[1723213630020,6.2172,155.2,155.12,43.91]
[1723213630228,6.2172,155.2,155.13,21.28876275]
[1723213630727,6.2705,155.25,155.16,0.12549]
[1723213630892,6.2705,155.25,155.16,45.37647]
[1723213631091,15.6361,155.27,155.18,44.03549]
[1723213631297,15.6361,155.27,155.19,65.0]
[1723213632114,6.3547,155.3,155.2,0.12549]
[1723213632426,6.3547,155.3,155.22,0.12549]
[1723213632732,6.3547,155.3,155.22,65.25098]
[1723213633243,6.3547,155.3,155.22,66.53894198]
[1723213633598,6.3547,155.3,155.22,65.25098]
[1723213634221,15.8178,155.32,155.22,65.25098]
[1723213634809,15.8178,155.32,155.22,65.0]
[1723213635023,15.8178,155.32,155.23,1.28812707]
[1723213635224,15.8178,155.32,155.22,65.0]
[1723213635608,15.8178,155.32,155.23,0.25098]
[1723213635908,15.8178,155.32,155.22,65.0]
[1723213636117,1.3563673,155.31,155.18,43.91]
[1723213636352,15.8178,155.32,155.21,43.91]
[1723213636825,0.25098,155.31,155.21,43.91]
[1723213637001,15.8178,155.32,155.21,43.91]
[1723213637208,15.8178,155.32,155.22,1.28793177]
[1723213637421,15.8178,155.32,155.22,46.28793177]
[1723213637624,15.8178,155.32,155.23,20.0]
[1723213637830,15.8178,155.32,155.25,35.86]
[1723213638002,15.8178,155.32,155.26,20.0]
[1723213638205,15.8178,155.32,155.26,21.28778408]
[1723213638508,6.3798,155.34,155.27,35.86]
[1723213639033,1.1053873,155.33,155.26,20.0]
[1723213639230,6.3798,155.34,155.26,20.0]
[1723213639606,7.4851873,155.34,155.26,20.0]
[1723213639830,7.4851873,155.34,155.15,17.89236661]
[1723213639831,0.12549,155.32,155.15,17.89236661]
[1723213640009,35.86,155.3,155.15,15.73864046]
[1723213640216,1.3563673,155.29,155.2,35.86]
[1723213640415,35.98549,155.32,155.22,35.86]
[1723213640605,0.12549,155.32,155.24,35.86]
[1723213640809,37.3418573,155.32,155.22,35.86]
[1723213641031,0.12549,155.31,155.22,35.86]
[1723213641358,0.25098,155.31,155.22,35.86]
[1723213641512,0.25098,155.3,155.22,35.86]
[1723213641936,0.12549,155.33,155.24,35.86]
[1723213642145,0.37647,155.33,155.24,35.86]
[1723213642336,0.50196,155.33,155.24,35.86]
[1723213642546,0.25098,155.33,155.24,35.86]
[1723213642714,0.12549,155.33,155.25,20.0]
[1723213643845,6.4396,155.29,155.2,35.86]
[1723213644017,0.12549,155.28,155.2,35.86]
[1723213644217,0.25098,155.29,155.2,35.86]
[1723213644420,0.12549,155.28,155.2,35.86]
[1723213644724,0.12549,155.29,155.2,35.86]
[1723213645108,0.50196,155.29,155.21,20.0]
[1723213646143,35.98549,155.27,155.16,42.95319833]
[1723213646435,6.4417,155.24,155.14,35.86]
[1723213646637,1.1053873,155.23,155.14,35.86]
[1723213646811,1.2308773,155.23,155.14,35.86]
[1723213647018,0.12549,155.23,155.16,35.86]
[1723213647227,0.12549,155.24,155.16,35.86]
[1723213648640,6.5515,155.25,155.17,21.28858035]
[1723213649011,6.4398,155.29,155.22,35.86]
[1723213649012,6.5019,155.29,155.22,35.86]
[1723213649316,6.5019,155.29,155.2,35.86]
[1723213649532,17.4819873,155.28,155.18,35.86]
[1723213649713,35.86,155.27,155.17,20.0]
[1723213649916,7.5461873,155.26,155.16,35.86]
[1723213650526,35.98549,155.27,155.2,35.86]
[1723213650527,0.12549,155.27,155.2,35.86]
[1723213650750,0.12549,155.26,155.16,35.86]
[1723213650939,0.37647,155.26,155.16,35.86]
[1723213651236,0.37647,155.26,155.17,20.0]
[1723213651435,0.12549,155.25,155.17,20.0]
[1723213651639,0.25098,155.25,155.17,20.0]
[1723213651820,6.4422,155.23,155.14,35.86]
[1723213652017,0.12549,155.22,155.14,35.86]
[1723213652219,1.2308773,155.22,155.14,35.86]
[1723213652416,0.12549,155.21,155.12,35.86]
[1723213652629,0.12549,155.21,155.1,7.09319833]
[1723213652630,6.1229,155.2,155.1,35.86]
[1723213652833,1.2308773,155.19,155.1,35.86]
[1723213653426,17.6418873,155.18,155.1,35.86]
[1723213654141,0.12549,155.17,155.1,35.86]
[1723213654345,0.12549,155.17,155.06,20.29364056]
[1723213654346,42.55568,155.17,155.06,42.57914223]
[1723213654537,37.3418573,155.17,155.06,42.57914223]
[1723213654723,0.25098,155.17,155.08,35.86]
[1723213654927,0.25098,155.17,155.1,35.86]
[1723213655849,16.5365,155.18,155.12,35.86]
[1723213656150,16.5365,155.18,155.13,1.28900651]
[1723213656738,6.1229,155.2,155.14,37.14884482]
[1723213656939,6.1229,155.2,155.15,20.0]
[1723213657153,15.0269,155.23,155.15,20.0]
[1723213657154,15.0269,155.23,155.18,35.86]
[1723213657448,15.0269,155.23,155.19,1.28851802]
[1723213657652,15.0269,155.23,155.18,35.86]
[1723213657847,15.0269,155.23,155.16,35.86]
[1723213658045,15.0269,155.23,155.15,20.0]
[1723213658046,16.1322873,155.23,155.15,20.0]
[1723213658852,0.25098,155.22,155.15,20.0]
[1723213659334,1.2308773,155.21,155.14,35.86]
[1723213659539,0.12549,155.2,155.14,35.86]
[1723213659745,15.0269,155.23,155.15,65.0]
[1723213660063,15.0269,155.23,155.18,35.86]
[1723213660371,15.0269,155.23,155.19,1.28849146]
[1723213660652,15.6426,155.28,155.2,35.86]
[1723213660858,15.6426,155.28,155.22,35.86]
[1723213661070,16.7479873,155.28,155.18,35.86]
[1723213661366,6.4409,155.26,155.19,20.0]
[1723213661538,35.86,155.27,155.16,35.86]
[1723213661856,1.1053873,155.26,155.17,45.0]
[1723213662054,35.86,155.25,155.14,35.86]
[1723213662261,1.1053873,155.24,155.15,45.0]
[1723213662435,1.1053873,155.23,155.14,35.86]
[1723213662631,0.12549,155.22,155.14,35.86]
[1723213662833,0.25098,155.22,155.14,35.86]
[1723213663064,0.12549,155.22,155.14,35.86]
[1723213663237,35.86,155.27,155.18,35.86]
[1723213663436,36.23647,155.27,155.18,35.86]
[1723213663635,35.86,155.25,155.14,35.86]
[1723213663832,1.4818573,155.24,155.14,35.86]
[1723213664054,0.12549,155.22,155.14,35.86]
[1723213664257,0.12549,155.22,155.15,20.0]
[1723213664458,6.1333,155.21,155.15,20.0]
[1723213664759,15.8365,155.18,155.1,35.86]
[1723213664936,15.8365,155.18,155.04,35.86]
[1723213664937,1.1053873,155.17,155.08,35.86]
[1723213665134,1.2308773,155.17,155.08,35.86]
[1723213666264,0.12549,155.17,155.09,20.0]
[1723213666459,0.12549,155.17,155.06,35.86]
[1723213666460,42.80646,155.17,155.06,35.86]
[1723213666651,35.98549,155.15,155.04,35.86]
[1723213666852,0.12549,155.13,155.04,35.86]
[1723213667053,1.4818573,155.14,155.04,35.86]
[1723213667359,0.37647,155.14,155.06,35.86]
[1723213667560,0.12549,155.13,155.04,35.86]
[1723213667860,1.1053873,155.12,155.04,35.86]
[1723213668073,0.25098,155.11,155.04,35.86]
[1723213668639,6.2301,155.12,155.04,35.86]
[1723213668936,6.2301,155.12,155.08,35.86]
[1723213669156,6.3645,155.17,155.09,1.2893991]
[1723213669355,0.12549,155.16,155.09,1.2893991]
[1723213669864,6.48999,155.17,155.09,1.2893991]
[1723213670056,6.48999,155.17,155.08,35.86]
[1723213670256,6.48999,155.17,155.04,35.86]
[1723213670257,35.86,155.13,155.04,35.86]
[1723213670759,0.12549,155.12,155.05,45.0]
[1723213670966,0.12549,155.16,155.08,35.86]
[1723213671165,42.2245,155.17,155.08,35.86]
[1723213671391,42.2245,155.17,155.04,35.86]
[1723213671392,35.86,155.15,155.04,35.86]
[1723213671553,36.9653873,155.15,155.05,20.0]
[1723213671758,1.1053873,155.14,155.05,20.0]
[1723213672074,1.1053873,155.14,155.0,3.39984576]
[1723213672075,6.4467,155.12,155.02,35.86]
[1723213672244,15.6494,155.1,155.02,35.86]
[1723213672445,1.2308773,155.09,155.0,36.7092528]
[1723213672664,6.3095,155.08,155.0,36.7092528]
[1723213672973,6.3095,155.08,155.0,0.8492528]
[1723213672974,1.2308773,155.07,155.0,0.8492528]
[1723213673351,37.0908773,155.07,155.0,0.8492528]
[1723213673550,0.37647,155.06,155.0,0.8492528]
[1723213673747,0.12549,155.05,155.0,0.8492528]
[1723213674053,0.12549,155.04,155.0,0.8492528]
[1723213674368,15.7628,155.03,155.0,0.8492528]
[1723213676245,0.12549,155.07,155.0,0.8492528]
[1723213676445,15.88877,155.07,155.0,0.8492528]
[1723213676857,35.86,155.05,155.0,0.8492528]
[1723213677169,0.25098,155.04,155.0,0.8492528]
[1723213677375,0.25098,155.05,155.0,0.8492528]
[1723213677554,0.12549,155.03,155.0,0.8492528]
[1723213677871,0.12549,155.03,154.83,3.27162747]
[1723213677872,43.4158873,155.03,154.92,35.86]
[1723213678074,6.57629,155.02,154.92,35.86]
[1723213678284,0.12549,155.01,154.92,35.86]
[1723213678444,1.2308773,155.01,154.92,35.86]
[1723213678647,6.1352,154.99,154.9,35.86]
[1723213678867,0.25098,154.98,154.95,6.4536]
[1723213679284,0.25098,154.98,154.9,35.86]
[1723213679285,16.44468,154.98,154.9,35.86]
[1723213679568,0.12549,154.96,154.91,6.4549]
[1723213679783,35.98549,154.97,154.86,45.9734207]
[1723213679950,0.37647,154.96,154.86,45.9734207]
[1723213680351,0.12549,154.95,154.86,35.86]
[1723213680577,0.37647,154.95,154.86,35.86]
[1723213680751,0.37647,154.95,154.84,2.14047833]
[1723213680752,0.25098,154.94,154.84,36.7092528]
[1723213680950,0.12549,154.93,154.89,6.4558]
[1723213681149,0.12549,154.94,154.86,35.86]
[1723213681350,0.25098,154.94,154.91,6.4552]
[1723213681572,0.25098,154.94,154.86,35.86]
[1723213681573,0.25098,154.94,154.9,6.4557]
[1723213682151,37.2163673,154.93,154.84,0.8492528]
[1723213682353,16.5999,154.9,154.85,6.4578]
[1723213682570,1.1053873,154.89,154.85,6.4578]
[1723213682782,16.5999,154.9,154.84,0.8492528]
[1723213683173,6.1017,154.92,154.87,35.86]
[1723213683559,6.1017,154.92,154.84,0.8492528]
[1723213683754,12.5566,154.92,154.84,0.8492528]
[1723213683985,12.5566,154.92,154.86,6.4574]
[1723213683986,42.3154,154.91,154.86,6.4574]
[1723213684168,35.86,154.91,154.86,6.4574]
[1723213684373,1.1053873,154.9,154.84,0.8492528]
[1723213684682,36.36196,154.89,154.84,7.3071528]
[1723213685060,1.1053873,154.88,154.85,6.4578]
[1723213685390,0.12549,154.87,154.85,6.4578]
[1723213685554,0.12549,154.87,154.84,0.8492528]
[1723213685761,0.37647,154.87,154.84,0.8492528]
[1723213686054,36.23647,154.87,154.84,0.8492528]
[1723213686287,6.1192,154.83,154.73,6.7152272]
[1723213686466,1.1053873,154.82,154.79,6.4603]
[1723213686778,6.1192,154.83,154.81,6.4594]
[1723213686969,0.12549,154.82,154.74,35.86]
[1723213687165,1.1053873,154.82,154.76,35.86]
[1723213687393,6.1192,154.83,154.81,6.4595]
[1723213687558,6.1192,154.83,154.82,6.4591]
[1723213687762,6.1192,154.83,154.76,35.86]
[1723213688000,1.1053873,154.82,154.81,6.4595]
[1723213688284,6.1192,154.83,154.82,6.4591]
[1723213688581,6.1192,154.83,154.81,6.4594]
[1723213688808,0.12549,154.81,154.77,6.4611]
[1723213689085,6.5145,154.77,154.64,25.874672]
[1723213689284,6.5145,154.77,154.61,6.6436]
[1723213689285,0.25098,154.76,154.66,35.86]
[1723213689494,0.25098,154.75,154.66,35.86]
[1723213689787,1.2308773,154.74,154.66,35.86]
[1723213689985,1.2308773,154.74,154.64,35.86]
[1723213689986,0.12549,154.74,154.64,35.86]
[1723213690163,35.98549,154.75,154.64,35.86]
[1723213690374,35.86,154.8,154.64,35.86]
[1723213690375,15.707,154.81,154.74,35.86]
[1723213690683,15.707,154.81,154.78,35.86]
[1723213690887,6.5324,154.82,154.78,35.86]
[1723213691268,6.5324,154.82,154.76,35.86]
[1723213691881,6.5324,154.82,154.78,35.86]
[1723213692092,22.0281,154.86,154.78,35.86]
[1723213692383,22.0281,154.86,154.76,35.86]
[1723213692384,51.4306,154.86,154.76,35.86]
[1723213692567,15.5706,154.86,154.76,35.86]
[1723213692768,15.5706,154.86,154.78,35.86]
[1723213693005,15.5706,154.86,154.8,35.86]
[1723213693167,15.5706,154.86,154.82,35.86]
[1723213693495,6.3801,154.87,154.82,35.86]
[1723213693665,6.3801,154.87,154.74,0.12549]
[1723213693991,6.3801,154.87,154.79,35.86]
[1723213694790,21.5155,154.92,154.83,35.86]
[1723213694969,21.5155,154.92,154.85,35.86]
[1723213695164,21.5155,154.92,154.8,80.86]
[1723213695165,27.9708,154.92,154.83,35.86]
[1723213695497,42.3158,154.9,154.79,35.86]
[1723213695788,42.3161,154.9,154.79,35.86]
[1723213695971,42.3161,154.9,154.74,1.54279132]
[1723213695972,57.3755,154.92,154.81,35.86]
[1723213696175,57.3755,154.92,154.83,35.86]
[1723213696404,21.5155,154.92,154.83,35.86]
[1723213696773,21.5155,154.92,154.75,1.41696676]
[1723213696774,58.4808873,154.92,154.81,35.86]
[1723213696989,6.4554,154.91,154.81,35.86]
[1723213697187,57.3755,154.92,154.82,1.29166057]
[1723213697393,21.5155,154.92,154.83,35.86]
[1723213697595,21.5155,154.92,154.85,35.86]
[1723213697776,1.1053873,154.91,154.81,35.86]
[1723213698082,21.5155,154.92,154.85,35.86]
[1723213698292,21.5155,154.92,154.85,35.36]
[1723213698671,21.5155,154.92,154.83,35.86]
[1723213698885,21.5155,154.92,154.85,35.86]
[1723213699090,57.3755,154.92,154.81,35.86]
[1723213699268,35.86,154.9,154.8,35.86]
[1723213700196,0.25098,154.89,154.8,35.86]
[1723213700368,0.37647,154.89,154.8,35.86]
[1723213700868,0.12549,154.88,154.8,35.86]
[1723213701069,0.12549,154.87,154.78,35.86]
[1723213701283,0.37647,154.87,154.78,35.86]
[1723213701496,0.12549,154.86,154.78,35.86]
[1723213701697,45.0,154.89,154.8,35.86]
[1723213701698,0.12549,154.89,154.8,35.86]
[1723213701863,0.25098,154.89,154.81,1.29166786]
[1723213702069,0.12549,154.87,154.8,35.86]
[1723213702268,6.4578,154.85,154.78,35.86]
[1723213702468,6.4578,154.85,154.76,35.86]
[1723213702782,6.58369,154.84,154.76,35.86]
[1723213702971,6.46,154.8,154.72,35.86]
[1723213703166,35.86,154.8,154.73,1.29241942]
[1723213703370,50.9253,154.82,154.73,1.29241942]
[1723213703700,0.12549,154.81,154.73,1.29241942]
[1723213703902,0.12549,154.8,154.72,35.86]
[1723213704076,36.11098,154.8,154.7,35.86]
[1723213704271,0.25098,154.79,154.7,35.86]
[1723213704473,0.25098,154.79,154.68,0.8492528]
[1723213704474,35.86,154.74,154.68,0.8492528]
[1723213705101,16.6145,154.73,154.68,0.8492528]
[1723213705303,16.73999,154.73,154.68,0.8492528]
[1723213706498,16.73999,154.73,154.54,18.11922615]
[1723213706499,0.12549,154.69,154.53,1.96743687]
[1723213706697,35.86,154.65,154.54,35.86]
[1723213706998,1.3563673,154.69,154.53,0.8492528]
[1723213706999,35.98549,154.63,154.53,0.8492528]
[1723213707183,7.7283673,154.62,154.53,0.8492528]
[1723213707499,7.7283673,154.62,154.52,35.86]
[1723213707500,6.62298,154.62,154.52,35.2092528]
[1723213707797,6.62298,154.62,154.43,1.29389172]
[1723213707798,0.12549,154.58,154.43,1.29389934]
[1723213708014,35.86,154.57,154.46,35.86]
[1723213708299,35.86,154.55,154.46,35.86]
[1723213708476,0.25098,154.56,154.41,1.2945577]
[1723213708477,35.86,154.53,154.41,1.2945577]
[1723213708678,1.2308773,154.58,154.48,35.86]
[1723213708679,0.12549,154.58,154.48,35.86]
[1723213708890,35.86,154.59,154.49,1.29416621]
[1723213709198,6.59419,154.6,154.4,42.57947998]
[1723213709199,35.98549,154.57,154.46,35.86]
[1723213709398,0.12549,154.56,154.46,35.86]
[1723213709703,0.25098,154.56,154.46,35.86]
[1723213710000,35.86,154.53,154.38,2.07792133]
[1723213710307,0.12549,154.54,154.39,1.29470494]
[1723213710479,35.86,154.53,154.41,35.86]
[1723213710807,35.86,154.53,154.39,1.29470494]
[1723213710808,35.86,154.53,154.43,35.86]
[1723213710983,0.12549,154.52,154.43,35.86]
[1723213711186,35.86,154.53,154.43,35.86]
[1723213711898,0.25098,154.52,154.4,35.86]
[1723213712074,35.86,154.55,154.45,35.86]
[1723213712273,0.25098,154.54,154.45,35.86]
[1723213712496,36.11098,154.53,154.43,35.86]
[1723213712802,35.98549,154.51,154.41,35.86]
[1723213713005,0.12549,154.5,154.41,35.86]
[1723213713297,0.12549,154.52,154.41,35.86]
[1723213713484,35.86,154.53,154.41,35.86]
[1723213713692,0.25098,154.52,154.38,2.07813948]
[1723213713895,35.98549,154.51,154.41,35.86]
[1723213714103,35.86,154.53,154.41,35.86]
[1723213714398,35.86,154.55,154.43,35.86]
[1723213714704,25.09722865,154.62,154.43,35.86]
[1723213714705,35.86,154.53,154.43,35.86]
[1723213715217,35.86,154.49,154.39,35.86]
[1723213715378,1.1053873,154.48,154.39,35.86]
[1723213715692,6.0664,154.51,154.41,35.86]
[1723213716292,6.0664,154.51,154.43,35.86]
[1723213716511,6.1308,154.57,154.49,35.86]
[1723213716683,52.3917,154.61,154.51,35.86]
[1723213716886,35.86,154.59,154.49,35.86]
[1723213717089,52.3917,154.61,154.51,35.86]
[1723213717283,6.1308,154.62,154.53,35.86]
[1723213717491,16.4543,154.67,154.57,35.86]
[1723213717691,35.86,154.65,154.55,35.86]
[1723213717996,52.3143,154.67,154.56,20.0]
[1723213718307,1.1053873,154.71,154.56,20.0]
[1723213718308,35.86,154.71,154.59,35.86]
[1723213718494,35.86,154.71,154.61,35.86]
[1723213718810,57.9382,154.73,154.63,35.86]
[1723213719105,0.0897304,154.78,154.65,35.86]
[1723213719106,35.86,154.75,154.65,35.86]
[1723213719410,35.86,154.73,154.63,35.86]
[1723213719582,1.1053873,154.72,154.63,35.86]
[1723213719780,35.86,154.71,154.61,35.86]
[1723213720012,1.1053873,154.7,154.59,35.86]
[1723213720307,1.1053873,154.7,154.61,35.86]
[1723213720711,35.86,154.73,154.61,35.86]
[1723213720880,35.86,154.71,154.61,35.86]
[1723213721082,1.1053873,154.7,154.61,35.86]
[1723213721411,1.1053873,154.7,154.6,20.0]
[1723213721604,1.1053873,154.7,154.59,35.86]
[1723213721800,1.1053873,154.7,154.57,35.86]
[1723213721801,0.12549,154.66,154.57,35.86]